[Event "Late-Titled-Tuesday-Blitz-March-19-2024"]
[Site "Chess.com"]
[Date "2024.03.19"]
[Round "4"]
[White "GlavkonVVS"]
[Black "PapaieDudu"]
[Result "1/2-1/2"]
[WhiteElo "2681"]
[BlackElo "2472"]
[TimeControl "180+1"]
[EndTime "14:39:04 PDT"]
[Termination "Game drawn - insufficient material"]

1. c4 {[%clk 0:03:00.9]} 1... e6 {[%clk 0:02:59.2]} 2. Nc3 {[%clk 0:03:01.1]}
2... d5 {[%clk 0:02:59.5]} 3. d4 {[%clk 0:03:01]} 3... Nf6 {[%clk 0:02:59.5]} 4.
Nf3 {[%clk 0:03:00.9]} 4... a6 {[%clk 0:02:59.6]} 5. cxd5 {[%clk 0:03:00.9]}
5... exd5 {[%clk 0:03:00]} 6. Bg5 {[%clk 0:03:01]} 6... Be7 {[%clk 0:02:59.3]}
7. e3 {[%clk 0:03:01.3]} 7... Nbd7 {[%clk 0:02:59.7]} 8. Bd3 {[%clk 0:03:01.5]}
8... O-O {[%clk 0:02:59.9]} 9. O-O {[%clk 0:03:01.4]} 9... Re8 {[%clk
0:02:59.4]} 10. Rc1 {[%clk 0:03:00.7]} 10... Nf8 {[%clk 0:02:58.4]} 11. Qc2
{[%clk 0:02:58.6]} 11... h6 {[%clk 0:02:52.4]} 12. Bf4 {[%clk 0:02:57.9]} 12...
Ne6 {[%clk 0:02:51.7]} 13. Bg3 {[%clk 0:02:44]} 13... c6 {[%clk 0:02:45.9]} 14.
Ne5 {[%clk 0:02:43.9]} 14... Bd7 {[%clk 0:02:30.4]} 15. f4 {[%clk 0:02:37.9]}
15... Rf8 {[%clk 0:02:21.6]} 16. Be1 {[%clk 0:02:32.5]} 16... Be8 {[%clk
0:02:18.3]} 17. h3 {[%clk 0:02:30.1]} 17... Rc8 {[%clk 0:02:16.8]} 18. Qb3
{[%clk 0:02:25.9]} 18... b5 {[%clk 0:02:15.1]} 19. Ne2 {[%clk 0:02:19.6]} 19...
c5 {[%clk 0:02:10.6]} 20. Qd1 {[%clk 0:02:17.6]} 20... cxd4 {[%clk 0:01:58.1]}
21. exd4 {[%clk 0:02:17]} 21... Ne4 {[%clk 0:01:54.2]} 22. Bxe4 {[%clk
0:02:03.6]} 22... dxe4 {[%clk 0:01:54.5]} 23. Bf2 {[%clk 0:02:03.8]} 23... Rxc1
{[%clk 0:01:47.9]} 24. Qxc1 {[%clk 0:02:02.8]} 24... Qd5 {[%clk 0:01:40.8]} 25.
b3 {[%clk 0:02:00.5]} 25... b4 {[%clk 0:01:33.1]} 26. Qc4 {[%clk 0:01:51]} 26...
Qb7 {[%clk 0:01:29.2]} 27. d5 {[%clk 0:01:42]} 27... Bb5 {[%clk 0:01:27.7]} 28.
Qxe4 {[%clk 0:01:42.3]} 28... Bxe2 {[%clk 0:01:14.3]} 29. Qxe2 {[%clk
0:01:37.3]} 29... Qxd5 {[%clk 0:01:14.3]} 30. g3 {[%clk 0:01:28.4]} 30... Nd4
{[%clk 0:01:10.9]} 31. Bxd4 {[%clk 0:01:24.2]} 31... Qxd4+ {[%clk 0:01:10.7]}
32. Kg2 {[%clk 0:01:24.2]} 32... Re8 {[%clk 0:01:07.3]} 33. Qxa6 {[%clk
0:01:18.8]} 33... Bc5 {[%clk 0:01:02.3]} 34. Qe2 {[%clk 0:01:06]} 34... f6
{[%clk 0:00:58.5]} 35. Qc4+ {[%clk 0:01:06.1]} 35... Qxc4 {[%clk 0:00:55.9]} 36.
Nxc4 {[%clk 0:01:06.4]} 36... Re2+ {[%clk 0:00:56.6]} 37. Kf3 {[%clk 0:01:06.8]}
37... Rxa2 {[%clk 0:00:56.6]} 38. Kg4 {[%clk 0:01:04.2]} 38... g6 {[%clk
0:00:53.6]} 39. f5 {[%clk 0:01:03.1]} 39... h5+ {[%clk 0:00:44.2]} 40. Kh4
{[%clk 0:01:02.3]} 40... Kg7 {[%clk 0:00:40.7]} 41. fxg6 {[%clk 0:01:01.9]}
41... Kxg6 {[%clk 0:00:40.1]} 42. Rf3 {[%clk 0:00:47.6]} 42... Rg2 {[%clk
0:00:39.1]} 43. Ne3 {[%clk 0:00:44.5]} 43... Bxe3 {[%clk 0:00:28.1]} 44. Rxe3
{[%clk 0:00:44.2]} 44... Rb2 {[%clk 0:00:27.4]} 45. g4 {[%clk 0:00:41.4]} 45...
hxg4 {[%clk 0:00:27.6]} 46. Kxg4 {[%clk 0:00:41.8]} 46... Rg2+ {[%clk 0:00:28]}
47. Kf4 {[%clk 0:00:41.2]} 47... Rb2 {[%clk 0:00:25.2]} 48. Rg3+ {[%clk
0:00:40.6]} 48... Kh6 {[%clk 0:00:24.5]} 49. Ke4 {[%clk 0:00:40.6]} 49... Re2+
{[%clk 0:00:22.5]} 50. Kd4 {[%clk 0:00:40.7]} 50... Rf2 {[%clk 0:00:21.8]} 51.
Kc5 {[%clk 0:00:39.6]} 51... Rf4 {[%clk 0:00:21.5]} 52. Rg4 {[%clk 0:00:38.9]}
52... Rxg4 {[%clk 0:00:13.5]} 53. hxg4 {[%clk 0:00:39]} 53... Kg5 {[%clk
0:00:14.2]} 54. Kxb4 {[%clk 0:00:39.6]} 54... Kxg4 {[%clk 0:00:14.9]} 55. Ka5
{[%clk 0:00:40]} 55... f5 {[%clk 0:00:15.6]} 56. b4 {[%clk 0:00:40.8]} 56... f4
{[%clk 0:00:16.3]} 57. b5 {[%clk 0:00:41.5]} 57... f3 {[%clk 0:00:17]} 58. b6
{[%clk 0:00:42.2]} 58... f2 {[%clk 0:00:17.8]} 59. b7 {[%clk 0:00:42.8]} 59...
f1=Q {[%clk 0:00:18.3]} 60. b8=Q {[%clk 0:00:43.3]} 60... Qa1+ {[%clk
0:00:18.6]} 61. Kb6 {[%clk 0:00:43]} 61... Qb1+ {[%clk 0:00:19.2]} 62. Kc7
{[%clk 0:00:43.5]} 62... Qxb8+ {[%clk 0:00:20.1]} 63. Kxb8 {[%clk 0:00:43.7]}
1/2-1/2

[Event "Late-Titled-Tuesday-Blitz-March-19-2024"]
[Site "Chess.com"]
[Date "2024.03.19"]
[Round "4"]
[White "Dr_Pepper18"]
[Black "CarlosjPineror"]
[Result "0-1"]
[WhiteElo "2448"]
[BlackElo "2673"]
[TimeControl "180+1"]
[EndTime "14:39:07 PDT"]
[Termination "CarlosjPineror won on time"]

1. d4 {[%clk 0:03:00.9]} 1... Nf6 {[%clk 0:02:51.5]} 2. Nf3 {[%clk 0:03:00.3]}
2... e6 {[%clk 0:02:51.6]} 3. c3 {[%clk 0:02:59.6]} 3... c5 {[%clk 0:02:51.3]}
4. Bf4 {[%clk 0:02:58.7]} 4... b6 {[%clk 0:02:50.9]} 5. e3 {[%clk 0:02:50.8]}
5... Bb7 {[%clk 0:02:50.9]} 6. Nbd2 {[%clk 0:02:50.5]} 6... Nh5 {[%clk
0:02:50.5]} 7. Bg5 {[%clk 0:02:40.7]} 7... Be7 {[%clk 0:02:50.5]} 8. Bxe7 {[%clk
0:02:39.6]} 8... Qxe7 {[%clk 0:02:51.4]} 9. Bd3 {[%clk 0:02:37.9]} 9... a6
{[%clk 0:02:48]} 10. O-O {[%clk 0:02:33.4]} 10... O-O {[%clk 0:02:47.4]} 11. a4
{[%clk 0:02:02.9]} 11... d6 {[%clk 0:02:46.5]} 12. Qe2 {[%clk 0:01:59.9]} 12...
Nd7 {[%clk 0:02:45.9]} 13. h3 {[%clk 0:01:58.2]} 13... f5 {[%clk 0:02:32.1]} 14.
Rfe1 {[%clk 0:01:37.4]} 14... e5 {[%clk 0:02:23.2]} 15. Nxe5 {[%clk 0:01:33.9]}
15... Ng3 {[%clk 0:01:59.7]} 16. fxg3 {[%clk 0:01:22.9]} 16... dxe5 {[%clk
0:01:59.9]} 17. e4 {[%clk 0:01:12]} 17... cxd4 {[%clk 0:01:56.6]} 18. exf5
{[%clk 0:00:57.8]} 18... dxc3 {[%clk 0:01:53]} 19. bxc3 {[%clk 0:00:57.9]} 19...
Nc5 {[%clk 0:01:50.8]} 20. Bc4+ {[%clk 0:00:58.1]} 20... Kh8 {[%clk 0:01:45.1]}
21. Qxe5 {[%clk 0:00:58.2]} 21... Qd7 {[%clk 0:01:40.1]} 22. Rad1 {[%clk
0:00:37.1]} 22... Rxf5 {[%clk 0:01:36.8]} 23. Qe7 {[%clk 0:00:30.6]} 23... Qxe7
{[%clk 0:01:33.7]} 24. Rxe7 {[%clk 0:00:29.3]} 24... Rd8 {[%clk 0:01:34.6]} 25.
Rde1 {[%clk 0:00:28.6]} 25... Bc6 {[%clk 0:01:30.4]} 26. Nb3 {[%clk 0:00:18.8]}
26... Bxa4 {[%clk 0:01:26.5]} 27. Nd4 {[%clk 0:00:15.4]} 27... Rff8 {[%clk
0:01:19.4]} 28. Ra7 {[%clk 0:00:13.2]} 28... Rd7 {[%clk 0:01:16.4]} 29. Rxd7
{[%clk 0:00:12.1]} 29... Bxd7 {[%clk 0:01:17.3]} 30. Re7 {[%clk 0:00:12.3]}
30... Re8 {[%clk 0:01:10.6]} 31. Rf7 {[%clk 0:00:09.1]} 31... a5 {[%clk
0:01:06.7]} 32. Bb5 {[%clk 0:00:07.7]} 32... Bxb5 {[%clk 0:01:01.7]} 33. Nxb5
{[%clk 0:00:08.6]} 33... h6 {[%clk 0:01:02.3]} 34. Rc7 {[%clk 0:00:05.2]} 34...
a4 {[%clk 0:00:59]} 35. Rc6 {[%clk 0:00:04.9]} 35... Ra8 {[%clk 0:00:52.7]} 36.
Na3 {[%clk 0:00:05.3]} 36... Rb8 {[%clk 0:00:46.8]} 37. Kf2 {[%clk 0:00:05.9]}
37... Kg8 {[%clk 0:00:40.2]} 38. Ke3 {[%clk 0:00:06.1]} 38... Kf7 {[%clk
0:00:40.5]} 39. Kd4 {[%clk 0:00:06.2]} 39... Ne6+ {[%clk 0:00:39.2]} 40. Kc4
{[%clk 0:00:05.9]} 40... Ke7 {[%clk 0:00:35.4]} 41. Kb5 {[%clk 0:00:06.1]} 41...
Kd7 {[%clk 0:00:34]} 42. Rc4 {[%clk 0:00:05.8]} 42... Nc7+ {[%clk 0:00:34]} 43.
Kb4 {[%clk 0:00:05.3]} 43... b5 {[%clk 0:00:34]} 44. Rd4+ {[%clk 0:00:04.7]}
44... Kc6 {[%clk 0:00:34.4]} 45. c4 {[%clk 0:00:02.3]} 45... Na6+ {[%clk
0:00:32.3]} 46. Ka5 {[%clk 0:00:01.9]} 46... b4 {[%clk 0:00:33.2]} 47. Kxa6
{[%clk 0:00:01.1]} 47... bxa3 {[%clk 0:00:33.5]} 48. Rd3 {[%clk 0:00:02]} 48...
Rb3 {[%clk 0:00:32.9]} 49. Rd8 {[%clk 0:00:02.3]} 49... a2 {[%clk 0:00:32.5]}
50. Rc8+ {[%clk 0:00:02.9]} 50... Kd7 {[%clk 0:00:32.8]} 0-1

[Event "Late-Titled-Tuesday-Blitz-March-19-2024"]
[Site "Chess.com"]
[Date "2024.03.19"]
[Round "4"]
[White "Koalaskakistis"]
[Black "TheMagician"]
[Result "0-1"]
[WhiteElo "2489"]
[BlackElo "2232"]
[TimeControl "180+1"]
[EndTime "14:39:08 PDT"]
[Termination "TheMagician won by checkmate"]

1. d4 {[%clk 0:03:00.9]} 1... Nf6 {[%clk 0:02:55.3]} 2. Nc3 {[%clk 0:02:58.8]}
2... d5 {[%clk 0:02:55.2]} 3. Bf4 {[%clk 0:02:58.4]} 3... c6 {[%clk 0:02:55]} 4.
e3 {[%clk 0:02:57.5]} 4... h6 {[%clk 0:02:54.4]} 5. Nf3 {[%clk 0:02:49.4]} 5...
Bf5 {[%clk 0:02:41.2]} 6. Ne5 {[%clk 0:02:43.2]} 6... Nbd7 {[%clk 0:02:19.3]} 7.
Bd3 {[%clk 0:02:40.7]} 7... Bxd3 {[%clk 0:02:17.5]} 8. Qxd3 {[%clk 0:02:39.4]}
8... e6 {[%clk 0:02:11.1]} 9. O-O {[%clk 0:02:36.6]} 9... Nxe5 {[%clk
0:02:11.1]} 10. Bxe5 {[%clk 0:02:35.8]} 10... Be7 {[%clk 0:02:07.4]} 11. e4
{[%clk 0:02:25]} 11... O-O {[%clk 0:01:55.1]} 12. exd5 {[%clk 0:02:21.5]} 12...
Nxd5 {[%clk 0:01:43.7]} 13. Nxd5 {[%clk 0:02:05.8]} 13... exd5 {[%clk
0:01:37.6]} 14. c3 {[%clk 0:02:03.3]} 14... Qd7 {[%clk 0:01:31.4]} 15. Rae1
{[%clk 0:01:57.4]} 15... Rfe8 {[%clk 0:01:30.9]} 16. Qg3 {[%clk 0:01:54.7]}
16... Bf8 {[%clk 0:01:22.7]} 17. Bf4 {[%clk 0:01:51.5]} 17... Rxe1 {[%clk
0:01:19.3]} 18. Rxe1 {[%clk 0:01:51.3]} 18... Re8 {[%clk 0:01:19.5]} 19. f3
{[%clk 0:01:39.4]} 19... Rxe1+ {[%clk 0:01:13.5]} 20. Qxe1 {[%clk 0:01:40.3]}
20... Qe6 {[%clk 0:01:08.2]} 21. Qxe6 {[%clk 0:01:33.6]} 21... fxe6 {[%clk
0:01:08.2]} 22. Kf2 {[%clk 0:01:33.2]} 22... Kf7 {[%clk 0:01:04.9]} 23. Be5
{[%clk 0:01:31.4]} 23... g6 {[%clk 0:01:03.8]} 24. Ke3 {[%clk 0:01:30.9]} 24...
h5 {[%clk 0:01:03.1]} 25. g3 {[%clk 0:01:27.7]} 25... Bh6+ {[%clk 0:01:03]} 26.
Kd3 {[%clk 0:01:22.2]} 26... a6 {[%clk 0:00:55.5]} 27. h3 {[%clk 0:01:21.4]}
27... Bg5 {[%clk 0:00:54]} 28. g4 {[%clk 0:01:20.5]} 28... Be7 {[%clk
0:00:53.3]} 29. gxh5 {[%clk 0:01:16.3]} 29... gxh5 {[%clk 0:00:52.8]} 30. Ke3
{[%clk 0:01:14.9]} 30... Kg6 {[%clk 0:00:53.1]} 31. f4 {[%clk 0:01:08.9]} 31...
Kf5 {[%clk 0:00:50.8]} 32. Kf3 {[%clk 0:01:08.4]} 32... Bh4 {[%clk 0:00:49.4]}
33. Bc7 {[%clk 0:01:06.4]} 33... b5 {[%clk 0:00:47.2]} 34. Bd6 {[%clk
0:01:06.3]} 34... a5 {[%clk 0:00:46.9]} 35. Bc5 {[%clk 0:00:57.5]} 35... a4
{[%clk 0:00:45.8]} 36. b3 {[%clk 0:00:56.8]} 36... axb3 {[%clk 0:00:45.6]} 37.
axb3 {[%clk 0:00:57.7]} 37... Be1 {[%clk 0:00:44.3]} 38. Bb4 {[%clk 0:00:57.7]}
38... Bd2 {[%clk 0:00:42.2]} 39. Ba5 {[%clk 0:00:50.9]} 39... Bxf4 {[%clk
0:00:41.3]} 40. Bb4 {[%clk 0:00:48]} 40... e5 {[%clk 0:00:35]} 41. dxe5 {[%clk
0:00:43.5]} 41... Bxe5 {[%clk 0:00:35.1]} 42. Ba5 {[%clk 0:00:22.3]} 42... c5
{[%clk 0:00:34]} 43. c4 {[%clk 0:00:16.4]} 43... bxc4 {[%clk 0:00:33.1]} 44.
bxc4 {[%clk 0:00:17.3]} 44... dxc4 {[%clk 0:00:33.5]} 45. Bd2 {[%clk 0:00:17.7]}
45... c3 {[%clk 0:00:30.4]} 46. Bc1 {[%clk 0:00:18.1]} 46... Bd4 {[%clk
0:00:29.1]} 47. Ke2 {[%clk 0:00:17.4]} 47... Ke4 {[%clk 0:00:29.3]} 48. Kd1
{[%clk 0:00:16.5]} 48... Kd3 {[%clk 0:00:29]} 49. Bg5 {[%clk 0:00:14.9]} 49...
c4 {[%clk 0:00:26.7]} 50. Bc1 {[%clk 0:00:15.4]} 50... Bc5 {[%clk 0:00:26.9]}
51. h4 {[%clk 0:00:13.6]} 51... Bb4 {[%clk 0:00:25]} 52. Bg5 {[%clk 0:00:13.3]}
52... c2+ {[%clk 0:00:25.2]} 53. Kc1 {[%clk 0:00:11.6]} 53... Ba3# {[%clk
0:00:25.6]} 0-1

[Event "Late-Titled-Tuesday-Blitz-March-19-2024"]
[Site "Chess.com"]
[Date "2024.03.19"]
[Round "4"]
[White "DamianoLew95"]
[Black "MidnightFox"]
[Result "1-0"]
[WhiteElo "2732"]
[BlackElo "2513"]
[TimeControl "180+1"]
[EndTime "14:39:10 PDT"]
[Termination "DamianoLew95 won on time"]

1. e4 {[%clk 0:03:00.9]} 1... c5 {[%clk 0:02:59.1]} 2. Nf3 {[%clk 0:03:01.3]}
2... d6 {[%clk 0:02:58.7]} 3. Bb5+ {[%clk 0:03:01.4]} 3... Nd7 {[%clk
0:02:57.8]} 4. O-O {[%clk 0:03:00]} 4... Nf6 {[%clk 0:02:58.4]} 5. Re1 {[%clk
0:02:58.7]} 5... g6 {[%clk 0:02:56]} 6. c3 {[%clk 0:02:58.2]} 6... Bg7 {[%clk
0:02:54.7]} 7. d4 {[%clk 0:02:58.2]} 7... O-O {[%clk 0:02:54.6]} 8. e5 {[%clk
0:02:36.4]} 8... Nd5 {[%clk 0:02:53]} 9. Bg5 {[%clk 0:02:28.6]} 9... dxe5 {[%clk
0:02:43.3]} 10. dxe5 {[%clk 0:02:27.3]} 10... Nc7 {[%clk 0:02:38.9]} 11. Bf1
{[%clk 0:02:08]} 11... b6 {[%clk 0:02:30.5]} 12. Nbd2 {[%clk 0:01:47.1]} 12...
Bb7 {[%clk 0:02:29]} 13. a4 {[%clk 0:01:46.9]} 13... Ne6 {[%clk 0:02:24]} 14.
Bh4 {[%clk 0:01:47.1]} 14... Re8 {[%clk 0:02:19.5]} 15. Bc4 {[%clk 0:01:43.4]}
15... Qc7 {[%clk 0:02:15.2]} 16. Qb3 {[%clk 0:01:15.6]} 16... Ndf8 {[%clk
0:02:03.1]} 17. Ne4 {[%clk 0:01:05.4]} 17... Bxe5 {[%clk 0:01:44.6]} 18. Nxe5
{[%clk 0:01:03.8]} 18... Qxe5 {[%clk 0:01:45.5]} 19. Nf6+ {[%clk 0:01:03.6]}
19... exf6 {[%clk 0:01:42]} 20. Rxe5 {[%clk 0:01:03.8]} 20... fxe5 {[%clk
0:01:42.9]} 21. Bg3 {[%clk 0:00:56]} 21... f6 {[%clk 0:01:34.6]} 22. Rd1 {[%clk
0:00:54.2]} 22... Re7 {[%clk 0:01:26.7]} 23. h4 {[%clk 0:00:49.5]} 23... Kg7
{[%clk 0:01:24.7]} 24. h5 {[%clk 0:00:49.1]} 24... gxh5 {[%clk 0:01:21.3]} 25.
Be2 {[%clk 0:00:47]} 25... Ng6 {[%clk 0:01:16.9]} 26. Bxh5 {[%clk 0:00:37.2]}
26... Ngf4 {[%clk 0:01:16.3]} 27. Bxf4 {[%clk 0:00:28.3]} 27... Nxf4 {[%clk
0:01:16.1]} 28. Bf3 {[%clk 0:00:29]} 28... Bxf3 {[%clk 0:01:15]} 29. gxf3 {[%clk
0:00:29.9]} 29... Rg8 {[%clk 0:01:12.4]} 30. Kh2 {[%clk 0:00:26.3]} 30... Kh8
{[%clk 0:01:02.8]} 31. Rg1 {[%clk 0:00:24.1]} 31... Reg7 {[%clk 0:00:53.7]} 32.
Rxg7 {[%clk 0:00:23.5]} 32... Rxg7 {[%clk 0:00:54.6]} 33. a5 {[%clk 0:00:18.7]}
33... bxa5 {[%clk 0:00:25.2]} 34. Qb8+ {[%clk 0:00:16.8]} 34... Rg8 {[%clk
0:00:24.1]} 35. Qxa7 {[%clk 0:00:17.7]} 35... Rg2+ {[%clk 0:00:19.7]} 36. Kh1
{[%clk 0:00:17.9]} 36... Rxf2 {[%clk 0:00:20.2]} 37. Qxc5 {[%clk 0:00:17.6]}
37... Rg2 {[%clk 0:00:12.8]} 38. Qf8+ {[%clk 0:00:16.1]} 38... Rg8 {[%clk
0:00:12.8]} 39. Qxf6+ {[%clk 0:00:16.9]} 39... Rg7 {[%clk 0:00:12.9]} 40. Qxe5
{[%clk 0:00:16.6]} 40... Ng6 {[%clk 0:00:12.2]} 41. Qxa5 {[%clk 0:00:14.7]}
41... h6 {[%clk 0:00:11.7]} 42. c4 {[%clk 0:00:14.4]} 42... Kh7 {[%clk
0:00:12.6]} 43. c5 {[%clk 0:00:14.8]} 43... Ne5 {[%clk 0:00:08.5]} 44. Qc3
{[%clk 0:00:12.5]} 44... Re7 {[%clk 0:00:03.1]} 45. b4 {[%clk 0:00:10.4]} 45...
Kg6 {[%clk 0:00:01.9]} 46. b5 {[%clk 0:00:10.7]} 46... Kf5 {[%clk 0:00:02.3]}
47. c6 {[%clk 0:00:11]} 1-0

[Event "Late-Titled-Tuesday-Blitz-March-19-2024"]
[Site "Chess.com"]
[Date "2024.03.19"]
[Round "4"]
[White "MightyMike_009"]
[Black "Harsha_Bharathakoti"]
[Result "0-1"]
[WhiteElo "2777"]
[BlackElo "2950"]
[TimeControl "180+1"]
[EndTime "14:39:12 PDT"]
[Termination "Harsha_Bharathakoti won by resignation"]

1. d4 {[%clk 0:02:59.1]} 1... d5 {[%clk 0:02:58.1]} 2. c4 {[%clk 0:02:59]} 2...
e6 {[%clk 0:02:58.5]} 3. Nc3 {[%clk 0:02:59]} 3... a6 {[%clk 0:02:59]} 4. cxd5
{[%clk 0:02:58.8]} 4... exd5 {[%clk 0:02:59.9]} 5. Nf3 {[%clk 0:02:59.2]} 5...
c6 {[%clk 0:03:00.5]} 6. Bf4 {[%clk 0:02:58.9]} 6... Bd6 {[%clk 0:03:01]} 7. e3
{[%clk 0:02:59.4]} 7... Bxf4 {[%clk 0:02:54.2]} 8. exf4 {[%clk 0:03:00.3]} 8...
Bg4 {[%clk 0:02:54]} 9. Be2 {[%clk 0:02:57.6]} 9... Bxf3 {[%clk 0:02:53.3]} 10.
Bxf3 {[%clk 0:02:58.5]} 10... Ne7 {[%clk 0:02:50]} 11. O-O {[%clk 0:02:58.9]}
11... O-O {[%clk 0:02:50]} 12. a3 {[%clk 0:02:50.3]} 12... Nd7 {[%clk
0:02:44.3]} 13. Qd3 {[%clk 0:02:49.2]} 13... Nc8 {[%clk 0:02:38.7]} 14. Rac1
{[%clk 0:02:44.2]} 14... Nd6 {[%clk 0:02:39.2]} 15. Rfe1 {[%clk 0:02:19.6]}
15... Re8 {[%clk 0:02:32.8]} 16. Na4 {[%clk 0:02:05.5]} 16... g6 {[%clk
0:02:08.9]} 17. g3 {[%clk 0:01:51.3]} 17... Qa5 {[%clk 0:01:56.5]} 18. Nc3
{[%clk 0:01:50.9]} 18... Qb6 {[%clk 0:01:48.1]} 19. b4 {[%clk 0:01:41.4]} 19...
Nf6 {[%clk 0:01:33.5]} 20. Kg2 {[%clk 0:01:35.1]} 20... Nf5 {[%clk 0:01:27.5]}
21. Red1 {[%clk 0:01:26.3]} 21... Re7 {[%clk 0:01:28]} 22. Re1 {[%clk
0:01:04.7]} 22... Rxe1 {[%clk 0:01:11.6]} 23. Rxe1 {[%clk 0:01:04.6]} 23... Qxd4
{[%clk 0:01:12.3]} 24. Qc2 {[%clk 0:00:45.8]} 24... Re8 {[%clk 0:01:06.3]} 25.
Rxe8+ {[%clk 0:00:43]} 25... Nxe8 {[%clk 0:01:07.2]} 26. Na4 {[%clk 0:00:41.7]}
26... Ned6 {[%clk 0:01:01.4]} 27. Nc5 {[%clk 0:00:40.2]} 27... Qf6 {[%clk
0:00:56.6]} 28. Qe2 {[%clk 0:00:35.4]} 28... Qe7 {[%clk 0:00:56.2]} 29. Qd3
{[%clk 0:00:33.6]} 29... h5 {[%clk 0:00:48]} 30. h4 {[%clk 0:00:32.1]} 30... Ng7
{[%clk 0:00:36]} 31. Nb3 {[%clk 0:00:28.7]} 31... Qf6 {[%clk 0:00:34.4]} 32. Qe3
{[%clk 0:00:25.9]} 32... Ne6 {[%clk 0:00:33.5]} 33. Na5 {[%clk 0:00:23.3]} 33...
Qd4 {[%clk 0:00:31.5]} 34. Qe5 {[%clk 0:00:22]} 34... Qxe5 {[%clk 0:00:28.7]}
35. fxe5 {[%clk 0:00:22.9]} 35... Nc4 {[%clk 0:00:28.7]} 36. Nxb7 {[%clk
0:00:21.1]} 36... Nxa3 {[%clk 0:00:29.4]} 37. Na5 {[%clk 0:00:21]} 37... Nd4
{[%clk 0:00:29.1]} 38. Bd1 {[%clk 0:00:20.8]} 38... Nc4 {[%clk 0:00:22.8]} 39.
f4 {[%clk 0:00:20.8]} 39... Nxa5 {[%clk 0:00:21.9]} 40. bxa5 {[%clk 0:00:20.8]}
40... Kf8 {[%clk 0:00:20.4]} 41. Kf2 {[%clk 0:00:21.4]} 41... Ke7 {[%clk
0:00:21]} 42. Ke3 {[%clk 0:00:21.9]} 42... c5 {[%clk 0:00:21.8]} 43. Ba4 {[%clk
0:00:21]} 43... Ke6 {[%clk 0:00:20.2]} 44. Be8 {[%clk 0:00:19.7]} 44... Nb3
{[%clk 0:00:19.3]} 45. Bc6 {[%clk 0:00:19.7]} 45... Nxa5 {[%clk 0:00:19.4]} 46.
Ba8 {[%clk 0:00:20.4]} 46... Nc4+ {[%clk 0:00:19.3]} 47. Kd3 {[%clk 0:00:20.5]}
47... Nb6 {[%clk 0:00:20.2]} 48. Bb7 {[%clk 0:00:20.6]} 48... a5 {[%clk
0:00:21.1]} 49. Kc3 {[%clk 0:00:20.2]} 49... a4 {[%clk 0:00:22]} 50. Kb2 {[%clk
0:00:19.1]} 50... Nc4+ {[%clk 0:00:21]} 51. Kc3 {[%clk 0:00:18.6]} 51... Ne3
{[%clk 0:00:21.9]} 52. Bc8+ {[%clk 0:00:18.8]} 52... Ke7 {[%clk 0:00:22.1]} 53.
Kd3 {[%clk 0:00:19.5]} 53... Nf5 {[%clk 0:00:22.3]} 54. Bb7 {[%clk 0:00:19.7]}
54... d4 {[%clk 0:00:21.3]} 55. Bd5 {[%clk 0:00:20.1]} 55... Nxg3 {[%clk
0:00:21.7]} 56. Ba2 {[%clk 0:00:18.8]} 56... Nf5 {[%clk 0:00:22]} 57. Kc4 {[%clk
0:00:17.7]} 57... Nxh4 {[%clk 0:00:22.1]} 58. Bb1 {[%clk 0:00:18.4]} 58... a3
{[%clk 0:00:22]} 59. Kxc5 {[%clk 0:00:18.5]} 59... d3 {[%clk 0:00:22.3]} 60. Kb4
{[%clk 0:00:18.9]} 60... d2 {[%clk 0:00:22.8]} 0-1

[Event "Late-Titled-Tuesday-Blitz-March-19-2024"]
[Site "Chess.com"]
[Date "2024.03.19"]
[Round "4"]
[White "Thjop"]
[Black "SuanFernandes"]
[Result "1-0"]
[WhiteElo "2657"]
[BlackElo "2325"]
[TimeControl "180+1"]
[EndTime "14:39:13 PDT"]
[Termination "Thjop won by resignation"]

1. d4 {[%clk 0:03:00.9]} 1... d5 {[%clk 0:02:53.5]} 2. Nf3 {[%clk 0:03:01]} 2...
Nf6 {[%clk 0:02:50.7]} 3. g3 {[%clk 0:03:01.4]} 3... c5 {[%clk 0:02:49.8]} 4.
Bg2 {[%clk 0:03:01.6]} 4... Nc6 {[%clk 0:02:50.2]} 5. O-O {[%clk 0:03:02.1]}
5... e6 {[%clk 0:02:49.5]} 6. c4 {[%clk 0:03:02.3]} 6... dxc4 {[%clk 0:02:49.9]}
7. Ne5 {[%clk 0:03:01.6]} 7... Bd7 {[%clk 0:02:44.1]} 8. Na3 {[%clk 0:03:01.2]}
8... cxd4 {[%clk 0:02:41]} 9. Naxc4 {[%clk 0:03:01]} 9... Be7 {[%clk 0:02:37.3]}
10. Bf4 {[%clk 0:02:28.6]} 10... Nd5 {[%clk 0:02:34.1]} 11. Nxc6 {[%clk
0:02:20.2]} 11... Bxc6 {[%clk 0:02:29.3]} 12. Be5 {[%clk 0:02:20.6]} 12... Bf6
{[%clk 0:02:25.1]} 13. Qxd4 {[%clk 0:02:18.1]} 13... O-O {[%clk 0:02:19.8]} 14.
Rfd1 {[%clk 0:02:14.7]} 14... Rc8 {[%clk 0:01:55.6]} 15. e4 {[%clk 0:02:01.3]}
15... Bxe5 {[%clk 0:01:48.5]} 16. Nxe5 {[%clk 0:01:53.6]} 16... Nb6 {[%clk
0:01:38.8]} 17. Nxc6 {[%clk 0:01:53.3]} 17... bxc6 {[%clk 0:01:37.1]} 18. Qc5
{[%clk 0:01:49.3]} 18... Qc7 {[%clk 0:01:27.9]} 19. Rac1 {[%clk 0:01:44.1]}
19... Rfd8 {[%clk 0:01:14.4]} 20. Rxd8+ {[%clk 0:01:43.6]} 20... Rxd8 {[%clk
0:01:14.5]} 21. e5 {[%clk 0:01:38.2]} 21... Nd5 {[%clk 0:01:07.9]} 22. Qxc6
{[%clk 0:01:33.5]} 22... Qxe5 {[%clk 0:01:00.6]} 23. Qb7 {[%clk 0:01:20]} 23...
a5 {[%clk 0:00:39.7]} 24. Rc8 {[%clk 0:00:49]} 24... Qd6 {[%clk 0:00:25.9]} 25.
Bxd5 {[%clk 0:00:27]} 25... exd5 {[%clk 0:00:22.5]} 26. Qa8 {[%clk 0:00:27.1]}
26... Rf8 {[%clk 0:00:18.2]} 27. Kf1 {[%clk 0:00:23.9]} 27... Rxc8 {[%clk
0:00:05.9]} 28. Qxc8+ {[%clk 0:00:24.8]} 28... Qf8 {[%clk 0:00:06]} 29. Qxf8+
{[%clk 0:00:17]} 29... Kxf8 {[%clk 0:00:06.1]} 30. Ke2 {[%clk 0:00:17.9]} 30...
Ke8 {[%clk 0:00:06.7]} 31. Kd3 {[%clk 0:00:18.8]} 31... Kd7 {[%clk 0:00:05.9]}
32. Kd4 {[%clk 0:00:19.2]} 32... Kd6 {[%clk 0:00:06.4]} 33. b3 {[%clk
0:00:19.6]} 33... f6 {[%clk 0:00:06.1]} 34. a3 {[%clk 0:00:19.8]} 34... g5
{[%clk 0:00:06.2]} 35. g4 {[%clk 0:00:19]} 35... h6 {[%clk 0:00:06]} 36. b4
{[%clk 0:00:19.3]} 36... axb4 {[%clk 0:00:04.1]} 37. axb4 {[%clk 0:00:20.2]}
37... Kc6 {[%clk 0:00:04.7]} 38. f3 {[%clk 0:00:17.5]} 38... Kb5 {[%clk
0:00:02.3]} 39. Kxd5 {[%clk 0:00:18.4]} 39... Kxb4 {[%clk 0:00:02.7]} 40. Ke6
{[%clk 0:00:18.9]} 40... Kc3 {[%clk 0:00:03.6]} 41. Kxf6 {[%clk 0:00:19.5]}
41... Kd3 {[%clk 0:00:04]} 42. Kg6 {[%clk 0:00:20.1]} 42... Ke3 {[%clk
0:00:04.3]} 43. Kxh6 {[%clk 0:00:20.7]} 43... Kf4 {[%clk 0:00:03.4]} 44. Kh5
{[%clk 0:00:19.6]} 44... Kxf3 {[%clk 0:00:03.2]} 45. Kxg5 {[%clk 0:00:19.9]}
45... Kg2 {[%clk 0:00:04.1]} 46. h4 {[%clk 0:00:20.2]} 46... Kg3 {[%clk
0:00:04.8]} 47. h5 {[%clk 0:00:21.1]} 47... Kf3 {[%clk 0:00:05.7]} 48. h6 {[%clk
0:00:22]} 48... Ke3 {[%clk 0:00:06.6]} 49. h7 {[%clk 0:00:22.9]} 49... Kf3
{[%clk 0:00:07.5]} 50. h8=Q {[%clk 0:00:23.1]} 50... Kg2 {[%clk 0:00:08.4]} 51.
Qf6 {[%clk 0:00:23.3]} 51... Kg1 {[%clk 0:00:08.1]} 52. Qf3 {[%clk 0:00:21.7]}
1-0